[Event "Early-Titled-Tuesday-Blitz-June-18-2024"]
[Site "Chess.com"]
[Date "2024.06.18"]
[Round "5"]
[White "Zq1"]
[Black "BlackBoarder"]
[Result "0-1"]
[WhiteElo "2514"]
[BlackElo "2732"]
[TimeControl "180+1"]
[EndTime "8:57:14 PDT"]
[Termination "BlackBoarder won by resignation"]

1. d4 {[%clk 0:03:00.9]} 1... Nf6 {[%clk 0:02:46]} 2. c4 {[%clk 0:03:00.6]} 2...
e6 {[%clk 0:02:44.9]} 3. g3 {[%clk 0:02:59.8]} 3... d5 {[%clk 0:02:42.9]} 4. Bg2
{[%clk 0:02:59.5]} 4... dxc4 {[%clk 0:02:41.9]} 5. Nf3 {[%clk 0:02:52.6]} 5...
a6 {[%clk 0:02:37.4]} 6. O-O {[%clk 0:02:49]} 6... Nc6 {[%clk 0:02:12.6]} 7. e3
{[%clk 0:02:44.7]} 7... Rb8 {[%clk 0:02:11.9]} 8. Qe2 {[%clk 0:02:30]} 8... b5
{[%clk 0:02:11.4]} 9. b3 {[%clk 0:02:28.6]} 9... cxb3 {[%clk 0:02:07.4]} 10.
axb3 {[%clk 0:02:27.9]} 10... Bb7 {[%clk 0:02:07.3]} 11. Rd1 {[%clk 0:02:22.4]}
11... Be7 {[%clk 0:02:06.5]} 12. Ba3 {[%clk 0:02:21.9]} 12... O-O {[%clk
0:02:05.9]} 13. Bxe7 {[%clk 0:02:13]} 13... Qxe7 {[%clk 0:02:05.4]} 14. Qb2
{[%clk 0:02:02.9]} 14... Nb4 {[%clk 0:01:57.7]} 15. Qa3 {[%clk 0:01:43.6]} 15...
c5 {[%clk 0:01:43.7]} 16. Rc1 {[%clk 0:01:36.8]} 16... cxd4 {[%clk 0:01:30.8]}
17. exd4 {[%clk 0:01:30.7]} 17... Nbd5 {[%clk 0:01:18.6]} 18. Ne5 {[%clk
0:01:10.5]} 18... Qxa3 {[%clk 0:01:14.3]} 19. Nxa3 {[%clk 0:01:05.9]} 19... Rbc8
{[%clk 0:01:09.8]} 20. h3 {[%clk 0:01:01.5]} 20... Rxc1+ {[%clk 0:01:06.3]} 21.
Rxc1 {[%clk 0:01:01.4]} 21... Rc8 {[%clk 0:01:06.5]} 22. Rxc8+ {[%clk
0:01:01.1]} 22... Bxc8 {[%clk 0:01:07.4]} 23. Kf1 {[%clk 0:00:58.5]} 23... Kf8
{[%clk 0:01:06.3]} 24. Ke2 {[%clk 0:00:57.9]} 24... Ke7 {[%clk 0:01:06.4]} 25.
Kd2 {[%clk 0:00:58]} 25... Bb7 {[%clk 0:01:03.2]} 26. Nc2 {[%clk 0:00:54.8]}
26... Nd7 {[%clk 0:01:00]} 27. Nd3 {[%clk 0:00:50.4]} 27... Kd6 {[%clk 0:00:57]}
28. Ne3 {[%clk 0:00:41]} 28... a5 {[%clk 0:00:51.3]} 29. f4 {[%clk 0:00:31.4]}
29... Nxe3 {[%clk 0:00:43]} 30. Bxb7 {[%clk 0:00:30]} 30... Nf5 {[%clk
0:00:43.5]} 31. Be4 {[%clk 0:00:17.3]} 31... Nxd4 {[%clk 0:00:42.8]} 32. Kc3
{[%clk 0:00:07.6]} 32... Ne2+ {[%clk 0:00:42.1]} 0-1

[Event "Early-Titled-Tuesday-Blitz-June-18-2024"]
[Site "Chess.com"]
[Date "2024.06.18"]
[Round "5"]
[White "artooon"]
[Black "Dolphin_2010"]
[Result "1-0"]
[WhiteElo "3105"]
[BlackElo "2742"]
[TimeControl "180+1"]
[EndTime "8:57:17 PDT"]
[Termination "artooon won on time"]

1. e4 {[%clk 0:03:00.9]} 1... c6 {[%clk 0:02:44.8]} 2. d4 {[%clk 0:03:00.4]}
2... d5 {[%clk 0:02:45.7]} 3. e5 {[%clk 0:02:59.4]} 3... Bf5 {[%clk 0:02:40.6]}
4. Nc3 {[%clk 0:02:57.6]} 4... a6 {[%clk 0:02:36.6]} 5. g4 {[%clk 0:02:56.7]}
5... Bd7 {[%clk 0:02:36.4]} 6. Be3 {[%clk 0:02:49.8]} 6... e6 {[%clk 0:02:30.8]}
7. Nge2 {[%clk 0:02:47.9]} 7... h5 {[%clk 0:02:25.9]} 8. gxh5 {[%clk 0:02:41.3]}
8... Rxh5 {[%clk 0:02:26.8]} 9. Nf4 {[%clk 0:02:37.1]} 9... Rh8 {[%clk
0:02:23.9]} 10. Bd3 {[%clk 0:02:37.7]} 10... c5 {[%clk 0:02:09.9]} 11. Ng6
{[%clk 0:02:28.7]} 11... cxd4 {[%clk 0:01:25.9]} 12. Nxh8 {[%clk 0:02:27.4]}
12... dxe3 {[%clk 0:01:16.6]} 13. Qf3 {[%clk 0:02:27.3]} 13... Nh6 {[%clk
0:01:05.8]} 14. O-O {[%clk 0:01:34.9]} 14... Qg5+ {[%clk 0:00:38.1]} 15. Kh1
{[%clk 0:01:34.7]} 15... Nc6 {[%clk 0:00:38.6]} 16. fxe3 {[%clk 0:01:26.9]}
16... Nxe5 {[%clk 0:00:38.2]} 17. Qe2 {[%clk 0:01:20.8]} 17... Bc6 {[%clk
0:00:26.9]} 18. e4 {[%clk 0:01:20.1]} 18... O-O-O {[%clk 0:00:19.7]} 19. Rg1
{[%clk 0:01:14.7]} 19... Qh4 {[%clk 0:00:15.4]} 20. exd5 {[%clk 0:01:09.8]}
20... Nxd3 {[%clk 0:00:09.7]} 21. cxd3 {[%clk 0:00:56.1]} 21... Rxd5 {[%clk
0:00:04.8]} 22. Ne4 {[%clk 0:00:39.1]} 22... Rxd3 {[%clk 0:00:02.3]} 23. Rac1
{[%clk 0:00:39.3]} 23... Rd4 {[%clk 0:00:02.1]} 24. Rxc6+ {[%clk 0:00:38.3]}
24... bxc6 {[%clk 0:00:02.7]} 25. Qxa6+ {[%clk 0:00:38.6]} 25... Kc7 {[%clk
0:00:01.7]} 26. Qa7+ {[%clk 0:00:38.9]} 26... Kc8 {[%clk 0:00:02.4]} 27. Qxd4
{[%clk 0:00:39.6]} 1-0

[Event "Early-Titled-Tuesday-Blitz-June-18-2024"]
[Site "Chess.com"]
[Date "2024.06.18"]
[Round "5"]
[White "WilliamAlfaroCaracas"]
[Black "FerAsensio2024"]
[Result "0-1"]
[WhiteElo "2336"]
[BlackElo "2529"]
[TimeControl "180+1"]
[EndTime "8:57:17 PDT"]
[Termination "FerAsensio2024 won on time"]

1. b3 {[%clk 0:03:00.9]} 1... Nf6 {[%clk 0:02:53.8]} 2. Bb2 {[%clk 0:02:59.2]}
2... d5 {[%clk 0:02:53.9]} 3. Nf3 {[%clk 0:02:58.9]} 3... Bf5 {[%clk 0:02:39.9]}
4. e3 {[%clk 0:02:56.6]} 4... h6 {[%clk 0:02:36.7]} 5. c4 {[%clk 0:02:54.5]}
5... e6 {[%clk 0:02:35]} 6. Nc3 {[%clk 0:02:44.3]} 6... Nc6 {[%clk 0:02:27.3]}
7. d3 {[%clk 0:02:32.6]} 7... d4 {[%clk 0:02:03.1]} 8. exd4 {[%clk 0:01:10.9]}
8... Nxd4 {[%clk 0:02:04]} 9. Nxd4 {[%clk 0:00:48]} 9... Qxd4 {[%clk 0:02:04.9]}
10. Be2 {[%clk 0:00:47.9]} 10... Bb4 {[%clk 0:02:02.3]} 11. Qd2 {[%clk
0:00:21.5]} 11... O-O-O {[%clk 0:01:58.1]} 12. Rd1 {[%clk 0:00:17.9]} 12... Kb8
{[%clk 0:01:01.9]} 13. a3 {[%clk 0:00:15.3]} 13... Bc5 {[%clk 0:00:56.4]} 14.
O-O {[%clk 0:00:12]} 14... Qh4 {[%clk 0:00:53.5]} 15. Nb5 {[%clk 0:00:09.2]}
15... Ne4 {[%clk 0:00:42.9]} 16. Qe1 {[%clk 0:00:05.9]} 16... Nd6 {[%clk
0:00:21.4]} 17. g3 {[%clk 0:00:05]} 17... Qh3 {[%clk 0:00:20.4]} 18. b4 {[%clk
0:00:03.7]} 18... Nxb5 {[%clk 0:00:19.2]} 19. bxc5 {[%clk 0:00:03]} 19... Nd4
{[%clk 0:00:19.7]} 0-1

[Event "Early-Titled-Tuesday-Blitz-June-18-2024"]
[Site "Chess.com"]
[Date "2024.06.18"]
[Round "5"]
[White "whiteglovethief"]
[Black "Fandorine"]
[Result "1/2-1/2"]
[WhiteElo "2549"]
[BlackElo "2934"]
[TimeControl "180+1"]
[EndTime "8:57:19 PDT"]
[Termination "Game drawn by repetition"]

1. d4 {[%clk 0:03:00.9]} 1... Nf6 {[%clk 0:03:00]} 2. c4 {[%clk 0:03:00.2]} 2...
g6 {[%clk 0:03:00.3]} 3. Nc3 {[%clk 0:02:59.5]} 3... Bg7 {[%clk 0:03:00.7]} 4.
e4 {[%clk 0:02:59.6]} 4... d6 {[%clk 0:03:01.2]} 5. Nf3 {[%clk 0:03:00.1]} 5...
O-O {[%clk 0:03:01.6]} 6. h3 {[%clk 0:03:00.3]} 6... e5 {[%clk 0:02:59.1]} 7. d5
{[%clk 0:03:00.3]} 7... Nh5 {[%clk 0:02:59.4]} 8. g3 {[%clk 0:02:53.7]} 8... Na6
{[%clk 0:02:59.5]} 9. Be2 {[%clk 0:02:48]} 9... f5 {[%clk 0:02:52.1]} 10. exf5
{[%clk 0:02:46]} 10... gxf5 {[%clk 0:02:51.5]} 11. Ng5 {[%clk 0:02:44.4]} 11...
Nf6 {[%clk 0:02:44.5]} 12. Qc2 {[%clk 0:02:40.7]} 12... Qe7 {[%clk 0:02:38.8]}
13. g4 {[%clk 0:02:27.4]} 13... e4 {[%clk 0:02:34.8]} 14. a3 {[%clk 0:02:14]}
14... Nc5 {[%clk 0:02:30.7]} 15. Be3 {[%clk 0:02:11.8]} 15... Nd3+ {[%clk
0:02:24.7]} 16. Kf1 {[%clk 0:01:32.4]} 16... fxg4 {[%clk 0:01:58]} 17. Bxd3
{[%clk 0:01:30.6]} 17... exd3 {[%clk 0:01:56.8]} 18. Qxd3 {[%clk 0:01:30.2]}
18... h6 {[%clk 0:01:32.7]} 19. Ne6 {[%clk 0:01:26.2]} 19... Bxe6 {[%clk
0:01:31]} 20. dxe6 {[%clk 0:01:27.1]} 20... Qxe6 {[%clk 0:01:31.6]} 21. Nd5
{[%clk 0:01:07]} 21... Nxd5 {[%clk 0:01:13.5]} 22. cxd5 {[%clk 0:01:07.9]} 22...
Qf5 {[%clk 0:01:14]} 23. Qxf5 {[%clk 0:01:03.8]} 23... Rxf5 {[%clk 0:01:13.8]}
24. hxg4 {[%clk 0:01:04.3]} 24... Rxd5 {[%clk 0:01:14.5]} 25. Bxh6 {[%clk
0:01:03.6]} 25... Bxh6 {[%clk 0:01:04.8]} 26. Rxh6 {[%clk 0:01:02.3]} 26... Rd2
{[%clk 0:01:05.7]} 27. Re1 {[%clk 0:00:43.1]} 27... Rxb2 {[%clk 0:00:40]} 28.
Re7 {[%clk 0:00:41.2]} 28... Rf8 {[%clk 0:00:19.2]} 29. Rg6+ {[%clk 0:00:40.1]}
29... Kh8 {[%clk 0:00:19.9]} 30. Rh6+ {[%clk 0:00:36.6]} 30... Kg8 {[%clk
0:00:20.4]} 31. Rg6+ {[%clk 0:00:35.3]} 31... Kh8 {[%clk 0:00:21]} 32. Rh6+
{[%clk 0:00:23]} 32... Kg8 {[%clk 0:00:21.3]} 1/2-1/2

[Event "Early-Titled-Tuesday-Blitz-June-18-2024"]
[Site "Chess.com"]
[Date "2024.06.18"]
[Round "5"]
[White "Hudijegszid"]
[Black "DmitryMaximov"]
[Result "0-1"]
[WhiteElo "2522"]
[BlackElo "2782"]
[TimeControl "180+1"]
[EndTime "8:57:20 PDT"]
[Termination "DmitryMaximov won by resignation"]

1. c4 {[%clk 0:03:00.9]} 1... Nf6 {[%clk 0:02:59.9]} 2. g3 {[%clk 0:02:59]} 2...
g6 {[%clk 0:03:00]} 3. b3 {[%clk 0:02:58.9]} 3... Bg7 {[%clk 0:02:59.3]} 4. Bb2
{[%clk 0:02:59.1]} 4... O-O {[%clk 0:02:59.8]} 5. Bg2 {[%clk 0:02:59.4]} 5... d6
{[%clk 0:03:00.2]} 6. d4 {[%clk 0:02:59.5]} 6... Nfd7 {[%clk 0:03:00.1]} 7. e3
{[%clk 0:02:57.3]} 7... e5 {[%clk 0:03:00.1]} 8. Ne2 {[%clk 0:02:57.8]} 8... f5
{[%clk 0:02:57.9]} 9. O-O {[%clk 0:02:57.2]} 9... Nc6 {[%clk 0:02:56.5]} 10.
Nbc3 {[%clk 0:02:56.1]} 10... Kh8 {[%clk 0:02:51.5]} 11. a3 {[%clk 0:02:54.3]}
11... a5 {[%clk 0:02:50.7]} 12. Qc2 {[%clk 0:02:49.1]} 12... exd4 {[%clk
0:02:43.6]} 13. exd4 {[%clk 0:02:49.1]} 13... Nxd4 {[%clk 0:02:40.8]} 14. Nxd4
{[%clk 0:02:47.4]} 14... Bxd4 {[%clk 0:02:41]} 15. Nd5 {[%clk 0:02:47.4]} 15...
Be5 {[%clk 0:02:26.8]} 16. Rfe1 {[%clk 0:02:29.3]} 16... c6 {[%clk 0:02:25.5]}
17. f4 {[%clk 0:02:28.3]} 17... Bxb2 {[%clk 0:02:00.9]} 18. Qxb2+ {[%clk
0:02:27.4]} 18... Nf6 {[%clk 0:01:58.7]} 19. Nxf6 {[%clk 0:01:47.5]} 19... Qxf6
{[%clk 0:01:57.5]} 20. Qxf6+ {[%clk 0:01:47.6]} 20... Rxf6 {[%clk 0:01:58.1]}
21. Re8+ {[%clk 0:01:48.2]} 21... Kg7 {[%clk 0:01:58.6]} 22. Rae1 {[%clk
0:01:47.6]} 22... Rf7 {[%clk 0:01:49.9]} 23. Kf2 {[%clk 0:01:42.9]} 23... Rc7
{[%clk 0:01:47.4]} 24. Rd8 {[%clk 0:01:38.7]} 24... d5 {[%clk 0:01:34.7]} 25.
Ree8 {[%clk 0:01:31.2]} 25... a4 {[%clk 0:01:32.1]} 26. b4 {[%clk 0:00:57]}
26... dxc4 {[%clk 0:01:31.7]} 27. Bf1 {[%clk 0:00:47]} 27... b5 {[%clk
0:01:30.8]} 28. Ke3 {[%clk 0:00:36.5]} 28... c5 {[%clk 0:01:17.4]} 29. bxc5
{[%clk 0:00:36.5]} 29... Rxc5 {[%clk 0:01:17.3]} 30. Kd4 {[%clk 0:00:35.7]}
30... Rc7 {[%clk 0:01:16.3]} 31. Kc3 {[%clk 0:00:34.4]} 31... Rb8 {[%clk
0:01:16]} 32. Be2 {[%clk 0:00:21.7]} 32... b4+ {[%clk 0:01:11.8]} 33. axb4
{[%clk 0:00:21.5]} 33... a3 {[%clk 0:01:12.4]} 34. Bxc4 {[%clk 0:00:09.8]} 34...
a2 {[%clk 0:01:09.3]} 35. Re1 {[%clk 0:00:10.2]} 35... Rxc4+ {[%clk 0:01:06.2]}
36. Kxc4 {[%clk 0:00:11.1]} 36... Ba6+ {[%clk 0:00:57.2]} 37. b5 {[%clk
0:00:11]} 37... Bxb5+ {[%clk 0:00:56.6]} 38. Kc5 {[%clk 0:00:11.6]} 38... Rxd8
{[%clk 0:00:56.4]} 39. Kxb5 {[%clk 0:00:12.3]} 39... Rb8+ {[%clk 0:00:56.7]} 40.
Kc4 {[%clk 0:00:08.3]} 40... Rb1 {[%clk 0:00:57.6]} 41. Re7+ {[%clk 0:00:08.6]}
0-1

[Event "Early-Titled-Tuesday-Blitz-June-18-2024"]
[Site "Chess.com"]
[Date "2024.06.18"]
[Round "5"]
[White "Squirlolz"]
[Black "ValentinDragnev"]
[Result "0-1"]
[WhiteElo "2502"]
[BlackElo "2694"]
[TimeControl "180+1"]
[EndTime "8:57:23 PDT"]
[Termination "ValentinDragnev won on time"]

1. Nf3 {[%clk 0:03:00.9]} 1... d5 {[%clk 0:02:59.2]} 2. g3 {[%clk 0:03:00.7]}
2... Nf6 {[%clk 0:02:59.8]} 3. Bg2 {[%clk 0:03:01.4]} 3... b6 {[%clk 0:02:56.4]}
4. O-O {[%clk 0:03:02.3]} 4... Bb7 {[%clk 0:02:57]} 5. a4 {[%clk 0:03:01.3]}
5... e6 {[%clk 0:02:52.1]} 6. a5 {[%clk 0:03:00.9]} 6... bxa5 {[%clk 0:02:53]}
7. d4 {[%clk 0:02:57.8]} 7... c5 {[%clk 0:02:52.6]} 8. Nbd2 {[%clk 0:02:49.1]}
8... Nc6 {[%clk 0:02:49.3]} 9. c3 {[%clk 0:02:39.3]} 9... cxd4 {[%clk
0:02:48.2]} 10. Nxd4 {[%clk 0:02:37]} 10... Nxd4 {[%clk 0:02:48.4]} 11. cxd4
{[%clk 0:02:37.5]} 11... Bb4 {[%clk 0:02:48.3]} 12. Nb3 {[%clk 0:02:30.2]} 12...
O-O {[%clk 0:02:48.2]} 13. Bd2 {[%clk 0:02:30]} 13... Qb6 {[%clk 0:02:48.5]} 14.
Nxa5 {[%clk 0:02:26.8]} 14... Rfc8 {[%clk 0:02:38.4]} 15. Nxb7 {[%clk
0:02:08.4]} 15... Qxb7 {[%clk 0:02:22.3]} 16. Bg5 {[%clk 0:02:06.9]} 16... Ne4
{[%clk 0:02:15.1]} 17. Bf4 {[%clk 0:01:57.9]} 17... Bf8 {[%clk 0:02:08.7]} 18.
Ra2 {[%clk 0:01:42.1]} 18... Rc4 {[%clk 0:01:51.3]} 19. e3 {[%clk 0:01:30.3]}
19... Rb4 {[%clk 0:01:45.3]} 20. Qa1 {[%clk 0:01:11.5]} 20... Nd2 {[%clk
0:01:38.9]} 21. Rd1 {[%clk 0:01:08.6]} 21... Nc4 {[%clk 0:01:36.2]} 22. Rc1
{[%clk 0:00:55.4]} 22... Rxb2 {[%clk 0:01:07.4]} 23. Ra6 {[%clk 0:00:23.4]}
23... Qb4 {[%clk 0:00:26.6]} 24. Rxa7 {[%clk 0:00:19.6]} 24... Rxa7 {[%clk
0:00:27.3]} 25. Qxa7 {[%clk 0:00:19.6]} 25... Rxf2 {[%clk 0:00:28]} 26. Rxc4
{[%clk 0:00:11.2]} 26... Qe1+ {[%clk 0:00:27.7]} 0-1

[Event "Early-Titled-Tuesday-Blitz-June-18-2024"]
[Site "Chess.com"]
[Date "2024.06.18"]
[Round "5"]
[White "HamedWafa4"]
[Black "Savagelittlemole"]
[Result "1-0"]
[WhiteElo "2676"]
[BlackElo "2496"]
[TimeControl "180+1"]
[EndTime "8:57:23 PDT"]
[Termination "HamedWafa4 won on time"]

1. Nf3 {[%clk 0:03:00.9]} 1... Nf6 {[%clk 0:02:52.9]} 2. g3 {[%clk 0:02:58.7]}
2... g6 {[%clk 0:02:50.3]} 3. Bg2 {[%clk 0:02:58.4]} 3... Bg7 {[%clk 0:02:50.9]}
4. O-O {[%clk 0:02:58]} 4... O-O {[%clk 0:02:51.6]} 5. c4 {[%clk 0:02:53.2]}
5... c5 {[%clk 0:02:50.9]} 6. Nc3 {[%clk 0:02:52.1]} 6... Nc6 {[%clk 0:02:51.1]}
7. d4 {[%clk 0:02:51.8]} 7... cxd4 {[%clk 0:02:41.6]} 8. Nxd4 {[%clk 0:02:52.2]}
8... e5 {[%clk 0:02:39.1]} 9. Ndb5 {[%clk 0:02:49.4]} 9... Ne8 {[%clk 0:02:17]}
10. Nd5 {[%clk 0:02:35.7]} 10... a6 {[%clk 0:02:11.6]} 11. Nbc3 {[%clk
0:02:35.5]} 11... d6 {[%clk 0:02:06.5]} 12. Be3 {[%clk 0:02:34]} 12... Be6
{[%clk 0:02:02.1]} 13. Bb6 {[%clk 0:02:31.7]} 13... Qd7 {[%clk 0:01:57.8]} 14.
Re1 {[%clk 0:02:28.6]} 14... f5 {[%clk 0:01:48.9]} 15. e3 {[%clk 0:02:26.3]}
15... Kh8 {[%clk 0:01:46.9]} 16. Qd2 {[%clk 0:02:23]} 16... Rc8 {[%clk
0:01:45.2]} 17. Rad1 {[%clk 0:02:22.8]} 17... e4 {[%clk 0:01:35]} 18. b3 {[%clk
0:02:18.8]} 18... Ne5 {[%clk 0:01:29.6]} 19. Bd4 {[%clk 0:02:12.7]} 19... Nd3
{[%clk 0:01:19.9]} 20. Bxg7+ {[%clk 0:02:09.2]} 20... Qxg7 {[%clk 0:01:19.6]}
21. Rf1 {[%clk 0:02:05.1]} 21... Bxd5 {[%clk 0:01:17.8]} 22. Nxd5 {[%clk
0:02:04.2]} 22... Nf6 {[%clk 0:01:07.4]} 23. Nf4 {[%clk 0:01:57]} 23... Nxf4
{[%clk 0:01:05.5]} 24. exf4 {[%clk 0:01:57.1]} 24... Rfd8 {[%clk 0:01:00.4]} 25.
f3 {[%clk 0:01:54.8]} 25... d5 {[%clk 0:00:54.9]} 26. fxe4 {[%clk 0:01:54.1]}
26... fxe4 {[%clk 0:00:49]} 27. cxd5 {[%clk 0:01:50.8]} 27... Rxd5 {[%clk
0:00:48.5]} 28. Qb2 {[%clk 0:01:48.8]} 28... Rxd1 {[%clk 0:00:40.4]} 29. Rxd1
{[%clk 0:01:49.7]} 29... Re8 {[%clk 0:00:34.5]} 30. h3 {[%clk 0:01:45.4]} 30...
Nh5 {[%clk 0:00:29.9]} 31. Qxg7+ {[%clk 0:01:42.8]} 31... Kxg7 {[%clk
0:00:30.8]} 32. Kf2 {[%clk 0:01:39.3]} 32... e3+ {[%clk 0:00:22.6]} 33. Kf3
{[%clk 0:01:38.8]} 33... Nf6 {[%clk 0:00:18.2]} 34. Re1 {[%clk 0:01:33.5]} 34...
Nd5 {[%clk 0:00:17.3]} 35. Bf1 {[%clk 0:01:17.8]} 35... b5 {[%clk 0:00:14.6]}
36. a4 {[%clk 0:01:15.6]} 36... bxa4 {[%clk 0:00:09.5]} 37. bxa4 {[%clk
0:01:16.5]} 37... Nc3 {[%clk 0:00:05.1]} 38. a5 {[%clk 0:01:13.4]} 38... Rb8
{[%clk 0:00:02]} 39. Rxe3 {[%clk 0:01:12.6]} 39... Na4 {[%clk 0:00:01]} 40. Bxa6
{[%clk 0:01:11.6]} 40... Ra8 {[%clk 0:00:01.6]} 41. Ra3 {[%clk 0:01:02]} 1-0

[Event "Early-Titled-Tuesday-Blitz-June-18-2024"]
[Site "Chess.com"]
[Date "2024.06.18"]
[Round "5"]
[White "chess123456s"]
[Black "Supelyel"]
[Result "1-0"]
[WhiteElo "2617"]
[BlackElo "2438"]
[TimeControl "180+1"]
[EndTime "8:57:23 PDT"]
[Termination "chess123456s won on time"]

1. e4 {[%clk 0:03:00.9]} 1... d6 {[%clk 0:02:55.4]} 2. Nf3 {[%clk 0:02:56.7]}
2... Nf6 {[%clk 0:02:55.1]} 3. Nc3 {[%clk 0:02:53]} 3... e5 {[%clk 0:02:54.9]}
4. Bc4 {[%clk 0:02:52.6]} 4... Be7 {[%clk 0:02:53.6]} 5. O-O {[%clk 0:02:52.6]}
5... O-O {[%clk 0:02:53.5]} 6. h3 {[%clk 0:02:51.4]} 6... Nbd7 {[%clk
0:02:52.4]} 7. d3 {[%clk 0:02:51]} 7... c6 {[%clk 0:02:52.4]} 8. a4 {[%clk
0:02:50.7]} 8... h6 {[%clk 0:02:46.5]} 9. Nh4 {[%clk 0:02:48.4]} 9... d5 {[%clk
0:02:41.2]} 10. Bb3 {[%clk 0:02:43.8]} 10... Nc5 {[%clk 0:02:41.2]} 11. Re1
{[%clk 0:02:20.9]} 11... d4 {[%clk 0:01:53.4]} 12. Nb1 {[%clk 0:02:04]} 12...
Nxb3 {[%clk 0:01:50.4]} 13. cxb3 {[%clk 0:02:04.9]} 13... Nxe4 {[%clk
0:01:50.2]} 14. Rxe4 {[%clk 0:02:01.6]} 14... Bxh4 {[%clk 0:01:49.3]} 15. Rxe5
{[%clk 0:01:59.5]} 15... Bxf2+ {[%clk 0:01:44.6]} 16. Kh1 {[%clk 0:01:57.1]}
16... Bg3 {[%clk 0:01:38.1]} 17. Rh5 {[%clk 0:01:28.9]} 17... Re8 {[%clk
0:01:29.2]} 18. Bd2 {[%clk 0:01:27.9]} 18... Qf6 {[%clk 0:01:28.5]} 19. Na3
{[%clk 0:01:23]} 19... b6 {[%clk 0:00:31.3]} 20. Nc4 {[%clk 0:01:15.8]} 20... g6
{[%clk 0:00:21.3]} 21. Rxh6 {[%clk 0:01:12.6]} 21... Re1+ {[%clk 0:00:20.8]} 22.
Qxe1 {[%clk 0:01:02.4]} 22... Bxe1 {[%clk 0:00:20.1]} 23. Rxe1 {[%clk
0:01:03.3]} 23... Be6 {[%clk 0:00:18.7]} 24. Ne5 {[%clk 0:00:58]} 24... Bd5
{[%clk 0:00:17.9]} 25. Ng4 {[%clk 0:00:55.6]} 25... Qg7 {[%clk 0:00:16]} 26. Bg5
{[%clk 0:00:54.7]} 26... f5 {[%clk 0:00:11.1]} 27. Nf6+ {[%clk 0:00:51.4]} 27...
Kf8 {[%clk 0:00:10.9]} 28. Rh7 {[%clk 0:00:50.8]} 28... Qxh7 {[%clk 0:00:05.6]}
29. Nxh7+ {[%clk 0:00:50.7]} 29... Kg7 {[%clk 0:00:05.6]} 30. Re7+ {[%clk
0:00:50.5]} 30... Kg8 {[%clk 0:00:04.8]} 31. Nf6+ {[%clk 0:00:51.4]} 31... Kf8
{[%clk 0:00:04.9]} 32. Rh7 {[%clk 0:00:47.8]} 32... Bf7 {[%clk 0:00:02.4]} 33.
Rh8+ {[%clk 0:00:47.3]} 33... Ke7 {[%clk 0:00:02.1]} 34. Rxa8 {[%clk 0:00:46.8]}
1-0

[Event "Early-Titled-Tuesday-Blitz-June-18-2024"]
[Site "Chess.com"]
[Date "2024.06.18"]
[Round "5"]
[White "howitzer14"]
[Black "banjadvorovi"]
[Result "1-0"]
[WhiteElo "3026"]
[BlackElo "2432"]
[TimeControl "180+1"]
[EndTime "8:57:26 PDT"]
[Termination "howitzer14 won by resignation"]

1. d4 {[%clk 0:03:00.9]} 1... Nf6 {[%clk 0:02:58.5]} 2. c4 {[%clk 0:03:01.8]}
2... g6 {[%clk 0:02:56.4]} 3. d5 {[%clk 0:02:55.1]} 3... e6 {[%clk 0:02:48.4]}
4. Nc3 {[%clk 0:02:53.9]} 4... exd5 {[%clk 0:02:45.1]} 5. cxd5 {[%clk
0:02:54.8]} 5... Bg7 {[%clk 0:02:44.4]} 6. e4 {[%clk 0:02:45.1]} 6... O-O {[%clk
0:02:42.9]} 7. Bd3 {[%clk 0:02:44]} 7... d6 {[%clk 0:02:41.4]} 8. Nge2 {[%clk
0:02:40.2]} 8... Nbd7 {[%clk 0:02:41.9]} 9. O-O {[%clk 0:02:39.9]} 9... Re8
{[%clk 0:02:41.3]} 10. Bc2 {[%clk 0:02:38.1]} 10... Nc5 {[%clk 0:02:39.5]} 11.
f3 {[%clk 0:02:35.1]} 11... a5 {[%clk 0:02:39.5]} 12. Be3 {[%clk 0:02:33.3]}
12... b6 {[%clk 0:02:29.5]} 13. Qd2 {[%clk 0:02:29.3]} 13... Ba6 {[%clk
0:02:24.4]} 14. Rfe1 {[%clk 0:02:29]} 14... Nfd7 {[%clk 0:02:24.1]} 15. Bd4
{[%clk 0:02:19.1]} 15... Ne5 {[%clk 0:02:19.6]} 16. b3 {[%clk 0:02:18.3]} 16...
Qh4 {[%clk 0:01:29.2]} 17. Kh1 {[%clk 0:01:55.4]} 17... Bh6 {[%clk 0:00:59.9]}
18. Be3 {[%clk 0:01:50.3]} 18... Bxe3 {[%clk 0:00:56.9]} 19. Qxe3 {[%clk
0:01:51.2]} 19... f5 {[%clk 0:00:34.9]} 20. Rad1 {[%clk 0:01:50.4]} 20... fxe4
{[%clk 0:00:34.4]} 21. Nxe4 {[%clk 0:01:48.8]} 21... Nxe4 {[%clk 0:00:34.6]} 22.
Bxe4 {[%clk 0:01:48.6]} 22... Nf7 {[%clk 0:00:23.6]} 23. Nc3 {[%clk 0:01:28.9]}
23... Re7 {[%clk 0:00:20.3]} 24. g3 {[%clk 0:01:21.1]} 24... Qf6 {[%clk
0:00:19.7]} 25. h4 {[%clk 0:01:17.6]} 25... Rae8 {[%clk 0:00:19.3]} 26. Kg2
{[%clk 0:01:17.9]} 26... Bc8 {[%clk 0:00:18.8]} 27. Qd4 {[%clk 0:01:13.1]} 27...
Qxd4 {[%clk 0:00:17.7]} 28. Rxd4 {[%clk 0:01:14]} 28... Bf5 {[%clk 0:00:17.2]}
29. Rc1 {[%clk 0:01:11.9]} 29... Kg7 {[%clk 0:00:08.5]} 30. Rc2 {[%clk
0:01:00.9]} 30... Ne5 {[%clk 0:00:08.4]} 31. Bxf5 {[%clk 0:00:57.4]} 31... gxf5
{[%clk 0:00:09.3]} 32. Nb5 {[%clk 0:00:57.3]} 32... Ng6 {[%clk 0:00:03.5]} 33.
h5 {[%clk 0:00:56.6]} 33... Nf8 {[%clk 0:00:02.5]} 34. Kf2 {[%clk 0:00:51.4]}
34... f4 {[%clk 0:00:02.3]} 35. Rxf4 {[%clk 0:00:50.8]} 35... Nd7 {[%clk
0:00:01.4]} 36. Nxc7 {[%clk 0:00:49.8]} 36... Rc8 {[%clk 0:00:02]} 37. Ne6+
{[%clk 0:00:49.7]} 37... Rxe6 {[%clk 0:00:01.1]} 38. Rxc8 {[%clk 0:00:50.6]} 1-0